fUST/lending_fUST_20241107
["ID","MTS","AMOUNT","RATE_DAILY","PERIOD"]
[341471565,1730917836206,-163.90483447,0.00022809,2]
[341471568,1730917836215,-500.0,0.00022809,2]
[341471569,1730917836224,-500.0,0.00022809,2]
[341471571,1730917836234,-500.0,0.00022809,2]
[341471573,1730917836243,-500.0,0.00022809,2]
[341471575,1730917836253,-500.0,0.00022809,2]
[341471577,1730917836263,-500.0,0.00022809,2]
[341471579,1730917836275,-500.0,0.00022809,2]
[341471581,1730917836292,-500.0,0.00022809,2]
[341471583,1730917836301,-500.0,0.00022809,2]
[341471585,1730917836311,-500.0,0.00022809,2]
[341471586,1730917836320,-500.0,0.00022809,2]
[341471588,1730917836328,-500.0,0.00022809,2]
[341471590,1730917836337,-500.0,0.00022809,2]
[341471592,1730917836347,-500.0,0.00022809,2]
[341471594,1730917836356,-500.0,0.00022809,2]
[341471596,1730917836365,-500.0,0.00022809,2]
[341471598,1730917836374,-500.0,0.00022809,2]
[341471600,1730917836384,-288.13015785,0.00022809,2]
[341471602,1730917836393,-500.0,0.00022809,2]
[341471604,1730917836404,-9077.4521263,0.0002281,2]
[341471606,1730917836413,-3000.0,0.00023098,2]
[341471608,1730917836423,-166.666666,0.00023207,2]
[341471610,1730917836432,-3546.984089,0.00023305,2]
[341471612,1730917836441,-2194.7773577,0.00023584,2]
[341471614,1730917836450,-152.0,0.00023643,2]
[341471616,1730917836459,-166.666666,0.00023839,2]
[341471618,1730917836469,-420.0,0.00023906,2]
[341471620,1730917836479,-503.16424075,0.0002399,2]
[341472275,1730917843618,-500.0,0.00022809,2]
[341472277,1730917843627,-500.0,0.00022809,2]
[341472279,1730917843636,-500.0,0.00022809,2]
[341472281,1730917843645,-500.0,0.00022809,2]
[341472283,1730917843655,-500.0,0.00022809,2]
[341472285,1730917843665,-500.0,0.00022809,2]
[341472287,1730917843674,-500.0,0.00022809,2]
[341472289,1730917843683,-500.0,0.00022809,2]
[341472291,1730917843693,-500.0,0.00022809,2]
[341472292,1730917843702,-500.0,0.00022809,2]
[341472294,1730917843712,-500.0,0.00022809,2]
[341472296,1730917843722,-500.0,0.00022809,2]
[341472298,1730917843732,-500.0,0.00022809,2]
[341472300,1730917843742,-500.0,0.00022809,2]
[341472302,1730917843751,-3043.81984825,0.0002399,2]
[341472304,1730917843760,-410.5493017,0.0002399,2]
[341472306,1730917843769,-420.0,0.00024199,2]
[341472308,1730917843779,-246.703337,0.00024273,2]
[341472310,1730917843788,-167.46,0.00024322,3]
[341472312,1730917843797,-502.42,0.00024322,3]
[341472317,1730917843909,-499.52267154,0.00024328,2]
[341472318,1730917843920,-257.37029806,0.00024328,2]
[341472319,1730917843931,-24900.0,0.00024332,2]
[341472320,1730917843941,-500.79655364,0.00024373,2]
[341472321,1730917843952,-301.72669671,0.00024373,2]
[341472322,1730917843962,-514.85352787,0.00024373,2]
[341472323,1730917843972,-500.0,0.00024373,2]
[341472324,1730917843983,-500.0,0.00024373,2]
[341472325,1730917843994,-503.96801302,0.00024373,2]
[341472326,1730917844004,-500.0,0.00024373,2]
[341472327,1730917844014,-500.0,0.00024373,2]
[341472328,1730917844023,-511.27233116,0.00024373,2]
[341472329,1730917844032,-500.0,0.00024373,2]
[341472330,1730917844041,-160.84083709,0.00024373,2]
[341472331,1730917844051,-500.0,0.00024373,2]
[341472332,1730917844061,-669.85,0.0002443,3]
[341472333,1730917844071,-334.92,0.0002443,3]
[341472334,1730917844081,-34574.90332024,0.0002444,2]
[341472335,1730917844090,-166.666666,0.00024472,2]
[341472336,1730917844099,-380.0,0.00024658,2]
[341472337,1730917844108,-161.7190428,0.00024658,4]
[341472338,1730917844117,-500.0,0.00024658,2]
[341472339,1730917844127,-500.0,0.00024658,2]
[341472340,1730917844137,-494.14269266,0.00024658,2]
[341472341,1730917844146,-500.0,0.00024658,2]
[341472342,1730917844157,-500.0,0.00024658,2]
[341472343,1730917844166,-500.0,0.00024658,2]
[341472344,1730917844175,-500.0,0.00024658,2]
[341472345,1730917844185,-500.0,0.00024658,2]
[341472346,1730917844195,-250.0,0.00024658,2]
[341472347,1730917844205,-500.0,0.00024658,2]
[341472348,1730917844214,-500.0,0.00024658,2]
[341472350,1730917844224,-500.0,0.00024658,2]
[341472352,1730917844233,-500.0,0.00024658,2]
[341472354,1730917844243,-500.0,0.00024658,2]
[341472356,1730917844253,-500.0,0.00024658,2]
[341472358,1730917844263,-170.979708,0.00024992,2]
[341472360,1730917844274,-10109.0782912,0.00025,120]
[341472362,1730917844284,-17435.88899306,0.00025,2]
[341472364,1730917844295,-165.31140158,0.00025,2]
[341472366,1730917844306,-1046.88257089,0.00025,2]
[341472368,1730917844316,-1366.30128896,0.00025,2]
[341472370,1730917844326,-203.20510501,0.00025,2]
[341472372,1730917844336,-509.35688591,0.00025,2]
[341472374,1730917844345,-166.666666,0.00025105,2]
[341472376,1730917844355,-334.92,0.00025692,3]
[341472378,1730917844364,-166.666666,0.00025737,2]
[341472380,1730917844373,-1000.0,0.00025742,2]
[341472382,1730917844383,-1000.0,0.00025742,2]
[341472384,1730917844392,-1000.0,0.00025742,2]
[341472385,1730917844401,-1007.5564034,0.00025742,2]
[341472387,1730917844415,-500.0,0.00025742,2]
[341472389,1730917844428,-1339.7,0.000258,3]
[341472391,1730917844437,-669.84,0.000258,3]
[341472393,1730917844446,-500.0,0.00025834,2]
[341472395,1730917844456,-167.73760096,0.00025834,2]
[341472397,1730917844465,-587.0,0.00025977,2]
[341472399,1730917844474,-166.666666,0.0002637,2]
[341472401,1730917844484,-2935.27766301,0.0002644,2]
[341472403,1730917844494,-587.0,0.00026619,2]
[341472405,1730917844503,-500.0,0.00027297,2]
[341472407,1730917844513,-1000.0,0.00027297,2]
[341472409,1730917844522,-406.80510007,0.00027297,2]
[341472411,1730917844532,-500.79160373,0.00027373,2]
[341472413,1730917844540,-500.0,0.00027373,2]
[341472415,1730917844549,-587.38780783,0.00027373,2]
[341472417,1730917844558,-501.46681774,0.00027373,2]
[341472419,1730917844568,-498.56853253,0.00027373,2]
[341472421,1730917844577,-501.08600131,0.00027373,2]
[341472423,1730917844586,-500.0,0.00027373,2]
[341472425,1730917844595,-500.0,0.00027373,2]
[341472426,1730917844604,-600.0,0.00027396,2]
[341472428,1730917844612,-500.0,0.00027397,2]
[341472430,1730917844622,-500.0,0.00027397,2]
[341472432,1730917844631,-500.0,0.00027397,2]
[341472434,1730917844640,-255.78117144,0.00027397,2]
[341472436,1730917844650,-500.0,0.00027397,2]
[341472438,1730917844661,-500.0,0.00027397,2]
[341472440,1730917844670,-500.0,0.00027397,2]
[341472442,1730917844680,-500.0,0.00027397,2]
[341472444,1730917844690,-503.62438651,0.00027397,2]
[341472446,1730917844700,-501.45061328,0.00027397,2]
[341472448,1730917844709,-500.0,0.00027397,2]
[341472450,1730917844718,-500.0,0.00027397,2]
[341472452,1730917844727,-500.0,0.00027397,2]
[341472454,1730917844736,-500.0,0.00027397,2]
[341472456,1730917844745,-500.0,0.00027397,2]
[341472458,1730917844754,-500.0,0.00027397,2]
[341472460,1730917844763,-503.23033688,0.00027397,2]
[341472462,1730917844772,-500.0,0.00027397,2]
[341472464,1730917844781,-517.91903389,0.00027397,2]
[341472466,1730917844791,-500.0,0.00027397,2]
[341472468,1730917844801,-500.0,0.00027397,2]
[341472470,1730917844811,-500.0,0.00027397,2]
[341472472,1730917844820,-500.0,0.00027397,2]
[341472474,1730917844830,-506.13195398,0.00027397,2]
[341472476,1730917844839,-504.26837411,0.00027397,2]
[341472478,1730917844848,-500.0,0.00027397,2]
[341472480,1730917844857,-500.0,0.00027397,2]
[341472482,1730917844866,-500.0,0.00027397,2]
[341472484,1730917844875,-500.0,0.00027397,2]
[341472486,1730917844884,-500.0,0.00027397,2]
[341472489,1730917844896,-500.0,0.00027397,2]
[341472490,1730917844911,-500.0,0.00027397,2]
[341472492,1730917844920,-552.45243695,0.00027397,2]
[341472494,1730917844930,-500.0,0.00027397,2]
[341472496,1730917844939,-500.0,0.00027397,2]
[341472498,1730917844949,-500.0,0.00027397,2]
[341472500,1730917844958,-506.41637395,0.00027397,2]
[341472502,1730917844968,-500.0,0.00027397,2]
[341472504,1730917844978,-500.0,0.00027397,2]
[341472506,1730917844988,-506.46186259,0.00027397,2]
[341472508,1730917844998,-500.0,0.00027397,2]
[341472510,1730917845007,-500.0,0.00027397,2]
[341472512,1730917845016,-500.0,0.00027397,2]
[341472514,1730917845026,-500.0,0.00027397,2]
[341472516,1730917845036,-500.0,0.00027397,2]
[341472518,1730917845045,-500.0,0.00027397,2]
[341472520,1730917845054,-500.0,0.00027397,2]
[341472522,1730917845064,-500.0,0.00027397,2]
[341472524,1730917845075,-500.0,0.00027397,2]
[341472526,1730917845085,-504.55218784,0.00027397,2]
[341472528,1730917845094,-500.0,0.00027397,2]
[341472530,1730917845103,-500.0,0.00027397,2]
[341472532,1730917845112,-500.0,0.00027397,2]
[341472534,1730917845121,-183.71723511,0.00027397,2]
[341472536,1730917845130,-500.0,0.00027397,2]
[341472538,1730917845139,-500.0,0.00027397,2]
[341472540,1730917845149,-636.18774139,0.00027397,2]
[341472542,1730917845158,-519.26121529,0.00027397,2]
[341472544,1730917845167,-500.0,0.00027397,2]
[341472546,1730917845176,-500.0,0.00027397,2]
[341472548,1730917845185,-491.13386687,0.00027397,2]
[341472550,1730917845194,-500.0,0.00027397,2]
[341472552,1730917845203,-500.0,0.00027397,2]
[341472554,1730917845212,-500.0,0.00027397,2]
[341472556,1730917845221,-502.17867385,0.00027397,2]
[341472558,1730917845231,-500.0,0.00027397,2]
[341472560,1730917845240,-540.75255349,0.00027397,2]
[341472562,1730917845249,-500.0,0.00027397,2]
[341472564,1730917845259,-500.0,0.00027397,2]
[341472566,1730917845268,-502.21225408,0.00027397,2]
[341472567,1730917845277,-500.0,0.00027397,2]
[341472569,1730917845287,-500.0,0.00027397,2]
[341472571,1730917845296,-500.0,0.00027397,2]
[341472573,1730917845306,-291.19995928,0.00027397,2]
[341472575,1730917845316,-500.0,0.00027397,2]
[341472577,1730917845326,-500.0,0.00027397,2]
[341472579,1730917845336,-500.0,0.00027397,2]
[341472581,1730917845345,-502.81674764,0.00027397,2]
[341472583,1730917845354,-500.0,0.00027397,2]
[341472585,1730917845364,-200.0,0.00027397,2]
[341472587,1730917845373,-500.0,0.00027397,2]
[341472589,1730917845382,-500.0,0.00027397,2]
[341472591,1730917845392,-504.39942117,0.00027397,2]
[341472593,1730917845402,-500.0,0.00027397,2]
[341472595,1730917845413,-500.0,0.00027397,2]
[341472596,1730917845422,-500.0,0.00027397,2]
[341472598,1730917845432,-508.72536043,0.00027397,2]
[341472600,1730917845441,-343.24506864,0.00027397,2]
[341472602,1730917845450,-500.0,0.00027397,2]
[341472605,1730917845460,-500.0,0.00027397,2]
[341472606,1730917845470,-500.0,0.00027397,2]
[341472609,1730917845480,-500.0,0.00027397,2]
[341472611,1730917845489,-500.0,0.00027397,2]
[341472613,1730917845499,-500.0,0.00027397,2]
[341472615,1730917845509,-500.0,0.00027397,2]
[341472617,1730917845518,-501.5084308,0.00027397,2]
[341472619,1730917845527,-507.01974075,0.00027397,2]
[341472621,1730917845537,-500.0,0.00027397,2]
[341472622,1730917845546,-503.43504948,0.00027397,2]
[341472623,1730917845556,-500.0,0.00027397,2]
[341472624,1730917845566,-500.0,0.00027397,2]
[341472625,1730917845575,-500.0,0.00027397,2]
[341472626,1730917845584,-501.6427327,0.00027397,2]
[341472627,1730917845594,-500.0,0.00027397,2]
[341472628,1730917845604,-500.0,0.00027397,2]
[341472629,1730917845614,-538.07330671,0.00027397,2]
[341472630,1730917845623,-500.0,0.00027397,2]
[341472631,1730917845632,-500.0,0.00027397,2]
[341472632,1730917845642,-500.0,0.00027397,2]
[341472633,1730917845651,-507.89139519,0.00027397,2]
[341472634,1730917845662,-585.15366619,0.00027397,2]
[341472635,1730917845671,-529.83393222,0.00027397,2]
[341472636,1730917845680,-500.0,0.00027397,2]
[341472637,1730917845690,-500.0,0.00027397,2]
[341472638,1730917845700,-500.0,0.00027397,2]
[341472639,1730917845710,-500.0,0.00027397,2]
[341472640,1730917845720,-500.0,0.00027397,2]
[341472641,1730917845731,-500.0,0.00027397,2]
[341472642,1730917845740,-500.0,0.00027397,2]
[341472643,1730917845750,-500.0,0.00027397,2]
[341472644,1730917845760,-514.0904001,0.00027397,2]
[341472646,1730917845770,-500.0,0.00027397,2]
[341472648,1730917845779,-500.0,0.00027397,2]
[341472651,1730917845790,-500.0,0.00027397,2]
[341472654,1730917845801,-500.0,0.00027397,2]
[341472656,1730917845810,-500.0,0.00027397,2]
[341472658,1730917845820,-531.84291197,0.00027397,2]
[341472660,1730917845829,-500.0,0.00027397,2]
[341472662,1730917845838,-500.0,0.00027397,2]
[341472665,1730917845848,-500.0,0.00027397,2]
[341472667,1730917845858,-500.0,0.00027397,2]
[341472669,1730917845868,-500.0,0.00027397,2]
[341472672,1730917845878,-500.0,0.00027397,2]
[341472675,1730917845888,-500.0,0.00027397,2]
[341472677,1730917845898,-387.64787242,0.00027397,2]
[341472679,1730917845912,-517.12882854,0.00027397,2]
[341472682,1730917845922,-500.0,0.00027397,2]
[341472684,1730917845932,-500.0,0.00027397,2]
[341472686,1730917845942,-500.0,0.00027397,2]
[341472688,1730917845952,-500.0,0.00027397,2]
[341472691,1730917845961,-517.24202184,0.00027397,2]
[341472693,1730917845971,-500.0,0.00027397,2]
[341472695,1730917845982,-500.0,0.00027397,2]
[341472698,1730917845992,-500.0,0.00027397,2]
[341472700,1730917846002,-500.0,0.00027397,2]
[341472702,1730917846012,-500.0,0.00027397,2]
[341472705,1730917846022,-500.0,0.00027397,2]
[341472720,1730917846032,-500.0,0.00027397,2]
[341472722,1730917846120,-500.0,0.00027397,2]
[341472724,1730917846130,-500.0,0.00027397,2]
[341472726,1730917846139,-504.78670592,0.00027397,2]
[341472728,1730917846148,-639.63,0.00027397,2]
[341472730,1730917846158,-500.0,0.00027397,2]
[341472732,1730917846168,-500.0,0.00027397,2]
[341472734,1730917846178,-500.0,0.00027397,2]
[341472736,1730917846189,-500.0,0.00027397,2]
[341472738,1730917846198,-500.0,0.00027397,2]
[341472740,1730917846208,-244.02227732,0.00027397,2]
[341472742,1730917846219,-501.72671402,0.00027397,2]
[341472744,1730917846228,-500.0,0.00027397,2]
[341472746,1730917846239,-509.2061198,0.00027397,2]
[341472748,1730917846248,-500.0,0.00027397,2]
[341472750,1730917846257,-500.0,0.00027397,2]
[341472752,1730917846266,-500.0,0.00027397,2]
[341472754,1730917846276,-500.0,0.00027397,2]
[341472756,1730917846285,-500.0,0.00027397,2]
[341472758,1730917846295,-500.0,0.00027397,2]
[341472760,1730917846304,-500.99284423,0.00027397,2]
[341472761,1730917846314,-500.0,0.00027397,2]
[341472763,1730917846324,-508.97520643,0.00027397,2]
[341472765,1730917846334,-500.0,0.00027397,2]
[341472767,1730917846344,-524.72016527,0.00027397,2]
[341472769,1730917846354,-568.36743545,0.00027397,2]
[341472771,1730917846364,-505.95168559,0.00027397,2]
[341472773,1730917846374,-500.0,0.00027397,2]
[341472775,1730917846383,-500.0,0.00027397,2]
[341472777,1730917846394,-532.27509647,0.00027397,2]
[341472779,1730917846403,-512.47080336,0.00027397,2]
[341472781,1730917846414,-503.28979221,0.00027397,2]
[341472783,1730917846424,-500.0,0.00027397,2]
[341472785,1730917846434,-500.0,0.00027397,2]
[341472787,1730917846443,-500.0,0.00027397,2]
[341472789,1730917846453,-500.0,0.00027397,2]
[341472791,1730917846462,-500.0,0.00027397,2]
[341472793,1730917846472,-500.0,0.00027397,2]
[341472795,1730917846482,-500.0,0.00027397,2]
[341472797,1730917846492,-482.42200163,0.00027397,2]
[341472799,1730917846501,-500.0,0.00027397,2]
[341472801,1730917846511,-502.5763128,0.00027397,2]
[341472803,1730917846520,-500.0,0.00027397,2]
[341472805,1730917846530,-500.0,0.00027397,2]
[341472807,1730917846539,-500.0,0.00027397,2]
[341472809,1730917846549,-500.0,0.00027397,2]
[341472811,1730917846558,-500.0,0.00027397,2]
[341472813,1730917846568,-500.0,0.00027397,2]
[341472815,1730917846577,-500.74778396,0.00027397,2]
[341472817,1730917846587,-500.0,0.00027397,2]
[341472819,1730917846597,-500.0,0.00027397,2]
[341472821,1730917846606,-505.47015516,0.00027397,2]
[341472823,1730917846615,-500.0,0.00027397,2]
[341472825,1730917846625,-500.0,0.00027397,2]
[341472827,1730917846634,-500.0,0.00027397,2]
[341472829,1730917846643,-504.88144218,0.00027397,2]
[341472831,1730917846652,-500.0,0.00027397,2]
[341472832,1730917846662,-513.49959736,0.00027397,2]
[341472834,1730917846671,-520.24,0.00027397,2]
[341472836,1730917846680,-504.74556712,0.00027397,2]
[341472839,1730917846689,-500.0,0.00027397,2]
[341472841,1730917846699,-500.0,0.00027397,2]
[341472843,1730917846708,-500.0,0.00027397,2]
[341472845,1730917846717,-500.0,0.00027397,2]
[341472846,1730917846726,-500.0,0.00027397,2]
[341472848,1730917846735,-509.68905568,0.00027397,2]
[341472850,1730917846745,-506.78023568,0.00027397,2]
[341472852,1730917846754,-500.0,0.00027397,2]
[341472854,1730917846763,-500.0,0.00027397,2]
[341472856,1730917846772,-500.0,0.00027397,2]
[341472858,1730917846781,-500.0,0.00027397,2]
[341472860,1730917846790,-500.0,0.00027397,2]
[341472862,1730917846799,-500.0,0.00027397,2]
[341472864,1730917846808,-500.0,0.00027397,2]
[341472866,1730917846816,-500.0,0.00027397,2]
[341472868,1730917846826,-500.0,0.00027397,2]
[341472870,1730917846835,-500.0,0.00027397,2]
[341472872,1730917846844,-500.0,0.00027397,2]
[341472874,1730917846853,-347.65283181,0.00027397,2]
[341472876,1730917846861,-1000.0,0.00027397,2]
[341472878,1730917846871,-506.37505722,0.00027397,2]
[341472880,1730917846880,-500.0,0.00027397,2]
[341472882,1730917846889,-500.0,0.00027397,2]
[341472884,1730917846898,-500.0,0.00027397,2]
[341472886,1730917846913,-504.19722138,0.00027397,2]
[341472889,1730917846924,-510.25365357,0.00027397,2]
[341472891,1730917846933,-540.13846499,0.00027397,2]
[341472893,1730917846943,-511.68272845,0.00027397,2]
[341472895,1730917846952,-500.0,0.00027397,2]
[341472897,1730917846964,-500.0,0.00027397,2]
[341472899,1730917846974,-500.0,0.00027397,2]
[341472901,1730917846984,-500.0,0.00027397,2]
[341472903,1730917846995,-500.0,0.00027397,2]
[341472905,1730917847005,-500.0,0.00027397,2]
[341472907,1730917847014,-200.0,0.00027397,2]
[341472909,1730917847024,-500.0,0.00027397,2]
[341472911,1730917847035,-500.0,0.00027397,2]
[341472913,1730917847045,-500.0,0.00027397,2]
[341472915,1730917847054,-500.0,0.00027397,2]
[341472917,1730917847064,-528.99017279,0.00027397,2]
[341472919,1730917847073,-500.0,0.00027397,2]
[341472921,1730917847083,-500.0,0.00027397,2]
[341472923,1730917847092,-500.0,0.00027397,2]
[341472925,1730917847101,-503.99864766,0.00027397,2]
[341472927,1730917847112,-500.0,0.00027397,2]
[341472929,1730917847121,-500.0,0.00027397,2]
[341472931,1730917847131,-536.53,0.00027397,2]
[341472933,1730917847140,-535.97456293,0.00027397,2]
[341472935,1730917847150,-500.0,0.00027397,2]
[341472936,1730917847160,-500.0,0.00027397,2]
[341472938,1730917847169,-502.93889895,0.00027397,2]
[341472940,1730917847178,-500.0,0.00027397,2]
[341472941,1730917847187,-500.0,0.00027397,2]
[341472942,1730917847196,-500.0,0.00027397,2]
[341472943,1730917847207,-500.0,0.00027397,2]
[341472944,1730917847217,-500.0,0.00027397,2]
[341472945,1730917847226,-500.0,0.00027397,2]
[341472946,1730917847239,-500.0,0.00027397,2]
[341472947,1730917847248,-500.0,0.00027397,2]
[341472948,1730917847257,-500.0,0.00027397,2]
[341472949,1730917847266,-500.0,0.00027397,2]
[341472950,1730917847276,-507.89734265,0.00027397,2]
[341472951,1730917847287,-505.49586885,0.00027397,2]
[341472952,1730917847297,-500.0,0.00027397,2]
[341472953,1730917847306,-500.0,0.00027397,2]
[341472954,1730917847315,-500.0,0.00027397,2]
[341472955,1730917847325,-613.4690976,0.00027397,2]
[341472956,1730917847335,-500.0,0.00027397,2]
[341472957,1730917847344,-500.0,0.00027397,2]
[341472958,1730917847353,-500.0,0.00027397,2]
[341472959,1730917847362,-500.0,0.00027397,2]
[341472960,1730917847371,-500.0,0.00027397,2]
[341472961,1730917847380,-500.0,0.00027397,2]
[341472962,1730917847389,-500.0,0.00027397,2]
[341472963,1730917847399,-4459.2,0.00027397,2]
[341472964,1730917847408,-500.0,0.00027397,2]
[341472965,1730917847418,-2799.49,0.00027397,2]
[341472966,1730917847427,-500.0,0.00027397,2]
[341472967,1730917847438,-500.0,0.00027397,2]
[341472968,1730917847447,-500.0,0.00027397,2]
[341472969,1730917847457,-500.0,0.00027397,2]
[341472970,1730917847466,-500.0,0.00027397,2]
[341472971,1730917847475,-500.0,0.00027397,2]
[341472972,1730917847485,-500.0,0.00027397,2]
[341472973,1730917847494,-500.0,0.00027397,2]
[341472974,1730917847504,-500.0,0.00027397,2]
[341472975,1730917847514,-501.58909139,0.00027397,2]
[341472976,1730917847523,-500.0,0.00027397,2]
[341472977,1730917847533,-500.0,0.00027397,2]
[341472978,1730917847542,-226.40880533,0.00027397,2]
[341472979,1730917847552,-500.0,0.00027397,2]
[341472980,1730917847561,-500.0,0.00027397,2]
[341472981,1730917847571,-500.0,0.00027397,2]
[341472982,1730917847580,-500.0,0.00027397,2]
[341472983,1730917847591,-500.0,0.00027397,2]
[341472984,1730917847600,-500.0,0.00027397,2]
[341472985,1730917847609,-518.54242753,0.00027397,2]
[341472986,1730917847618,-500.0,0.00027397,2]
[341472987,1730917847627,-500.0,0.00027397,2]
[341472988,1730917847637,-169.68108327,0.00027397,2]
[341472989,1730917847646,-500.0,0.00027397,2]
[341472990,1730917847654,-500.0,0.00027397,2]
[341472991,1730917847665,-500.0,0.00027397,2]
[341472992,1730917847674,-603.35458812,0.00027397,2]
[341472993,1730917847683,-500.0,0.00027397,2]
[341472994,1730917847692,-500.0,0.00027397,2]
[341472995,1730917847701,-500.0,0.00027397,2]
[341472996,1730917847710,-500.0,0.00027397,2]
[341472997,1730917847719,-500.0,0.00027397,2]
[341472998,1730917847728,-500.0,0.00027397,2]
[341472999,1730917847737,-500.0,0.00027397,2]
[341473000,1730917847746,-500.0,0.00027397,2]
[341473001,1730917847755,-500.0,0.00027397,2]
[341473002,1730917847763,-500.0,0.00027397,2]
[341473003,1730917847773,-500.0,0.00027397,2]
[341473004,1730917847782,-500.0,0.00027397,2]
[341473005,1730917847791,-500.0,0.00027397,2]
[341473006,1730917847800,-500.0,0.00027397,2]
[341473007,1730917847810,-500.0,0.00027397,2]
[341473008,1730917847819,-500.0,0.00027397,2]
[341473009,1730917847828,-500.0,0.00027397,2]
[341473010,1730917847837,-536.22,0.00027397,2]
[341473011,1730917847846,-824.86,0.00027397,2]
[341473013,1730917847855,-500.0,0.00027397,2]
[341473015,1730917847864,-500.0,0.00027397,2]
[341473017,1730917847873,-500.0,0.00027397,2]
[341473018,1730917847883,-500.0,0.00027397,2]
[341473019,1730917847891,-500.0,0.00027397,2]
[341473020,1730917847902,-472.26,0.00027397,2]
[341473021,1730917847913,-500.0,0.00027397,2]
[341473022,1730917847922,-500.0,0.00027397,2]
[341473023,1730917847932,-201.36559308,0.00027397,2]
[341473024,1730917847941,-500.0,0.00027397,2]
[341473025,1730917847950,-500.0,0.00027397,2]
[341473026,1730917847959,-503.09019801,0.00027397,2]
[341473027,1730917847968,-500.0,0.00027397,2]
[341473028,1730917847976,-500.0,0.00027397,2]
[341473029,1730917847987,-996.05,0.00027397,2]
[341473030,1730917847996,-500.0,0.00027397,2]
[341473031,1730917848005,-500.0,0.00027397,2]
[341473032,1730917848014,-500.0,0.00027397,2]
[341473033,1730917848024,-500.0,0.00027397,2]
[341473034,1730917848033,-500.0,0.00027397,2]
[341473035,1730917848117,-500.0,0.00027397,2]
[341473036,1730917848126,-500.0,0.00027397,2]
[341473037,1730917848136,-500.0,0.00027397,2]
[341473039,1730917848145,-513.89169892,0.00027397,2]
[341473041,1730917848156,-500.0,0.00027397,2]
[341473042,1730917848167,-500.0,0.00027397,2]
[341473044,1730917848177,-500.0,0.00027397,2]
[341473045,1730917848187,-500.0,0.00027397,2]
[341473046,1730917848197,-500.0,0.00027397,2]
[341473047,1730917848206,-500.0,0.00027397,2]
[341473048,1730917848215,-500.0,0.00027397,2]
[341473049,1730917848225,-454.61020688,0.00027397,2]
[341473050,1730917848234,-500.0,0.00027397,2]
[341473051,1730917848243,-500.0,0.00027397,2]
[341473052,1730917848252,-500.0,0.00027397,2]
[341473054,1730917848261,-500.0,0.00027397,2]
[341473055,1730917848271,-500.0,0.00027397,2]
[341473056,1730917848280,-500.0,0.00027397,2]
[341473057,1730917848290,-250.0,0.00027397,2]
[341473058,1730917848299,-500.0,0.00027397,2]
[341473059,1730917848308,-509.86861745,0.00027397,2]
[341473060,1730917848317,-500.0,0.00027397,2]
[341473061,1730917848327,-500.0,0.00027397,2]
[341473062,1730917848336,-500.0,0.00027397,2]
[341473063,1730917848345,-639.69912856,0.00027397,2]
[341473064,1730917848354,-159.801,0.0002751,30]
[341473065,1730917848363,-500.0,0.00027671,2]
[341473066,1730917848373,-500.0,0.00027671,2]
[341473067,1730917848382,-502.11714069,0.00027671,2]